fUSD/lending_fUSD_20250804
["ID","MTS","AMOUNT","RATE_DAILY","PERIOD"]
[377239929,1754305997623,-1875.95,0.00040547,2]
[377239930,1754305997632,-618.84,0.00040547,2]
[377239931,1754305997642,-491.69,0.00040547,2]
[377239932,1754305997651,-905.16,0.00040547,2]
[377239933,1754305997660,-476.99,0.00040547,2]
[377239934,1754305997670,-1286.32,0.00040547,2]
[377239935,1754305997679,-713.76,0.00040547,2]
[377239936,1754305997689,-580.3,0.00040547,2]
[377239937,1754305997698,-1377.16,0.00040547,2]
[377239938,1754305997708,-1539.83,0.00040547,2]
[377239939,1754305997717,-727.44,0.00040547,2]
[377239940,1754305997726,-582.52,0.00040547,2]
[377239941,1754305997736,-2160.03,0.00040547,2]
[377239942,1754305997745,-400.0,0.00040547,2]
[377239943,1754305997755,-406.58,0.00040547,2]
[377239944,1754305997764,-1891.71,0.00040547,2]
[377239945,1754305997773,-1515.13,0.00040547,2]
[377239946,1754305997782,-1032.57,0.00040547,2]
[377239947,1754305997791,-3107.23,0.00040547,2]
[377239948,1754305997801,-1732.93,0.00040547,2]
[377239949,1754305997810,-6316.72,0.00040547,2]
[377239950,1754305997822,-1698.39,0.00040547,2]
[377239951,1754305997831,-400.0,0.00040547,2]
[377239952,1754305997841,-400.0,0.00040547,2]
[377239953,1754305997850,-1238.95,0.00040547,2]
[377239954,1754305997860,-1670.39,0.00040547,2]
[377239955,1754305997869,-1066.08,0.00040547,2]
[377239956,1754305997878,-2052.93,0.00040547,2]
[377239957,1754305997888,-1868.67,0.00040547,2]
[377239958,1754305997897,-533.88,0.00040547,2]
[377239959,1754305997907,-1689.09,0.00040547,2]
[377239960,1754305997918,-1178.78,0.00040547,2]
[377239961,1754305997931,-1644.64,0.00040547,2]
[377239962,1754305997940,-942.3,0.00040547,2]
[377239963,1754305997949,-400.0,0.00040547,2]
[377239964,1754305997958,-1545.77,0.00040547,2]
[377239965,1754305997968,-1572.92,0.00040547,2]
[377239966,1754305997978,-1113.34,0.00040547,2]
[377239967,1754305997988,-8388.36,0.00040547,2]
[377239968,1754305997997,-1722.33,0.00040547,2]
[377239969,1754305998006,-1766.11,0.00040547,2]
[377239970,1754305998016,-1306.14,0.00040547,2]
[377239971,1754305998026,-819.3,0.00040547,2]
[377239972,1754305998035,-1596.57,0.00040547,2]
[377239973,1754305998045,-400.0,0.00040547,2]
[377239974,1754305998054,-1501.24,0.00040547,2]
[377239975,1754305998064,-1264.88,0.00040547,2]
[377239976,1754305998074,-431.73,0.00040547,2]
[377239977,1754305998083,-400.0,0.00040547,2]
[377239978,1754305998093,-1010.21,0.00040547,2]
[377239979,1754305998102,-1156.04,0.00040547,2]
[377239980,1754305998111,-400.0,0.00040547,2]
[377239981,1754305998121,-873.38,0.00040547,2]
[377239982,1754305998131,-4195.1,0.00040547,2]
[377239983,1754305998141,-714.27,0.00040547,2]
[377239984,1754305998150,-1925.04,0.00040547,2]
[377239985,1754305998159,-1469.78,0.00040547,2]
[377239986,1754305998169,-817.57,0.00040547,2]
[377239987,1754305998178,-1923.74,0.00040547,2]
[377239988,1754305998188,-1747.36,0.00040547,2]
[377239989,1754305998198,-694.89,0.00040547,2]
[377239990,1754305998208,-400.0,0.00040547,2]
[377239991,1754305998217,-1337.16,0.00040547,2]
[377239992,1754305998227,-670.37,0.00040547,2]
[377239993,1754305998237,-1746.78,0.00040547,2]
[377239994,1754305998247,-1448.9,0.00040547,2]
[377239995,1754305998257,-1374.38,0.00040547,2]
[377239996,1754305998266,-5776.09,0.00040547,2]
[377239997,1754305998276,-400.0,0.00040547,2]
[377239998,1754305998285,-1793.17,0.00040547,2]
[377239999,1754305998295,-1183.71,0.00040547,2]
[377240000,1754305998304,-400.0,0.00040547,2]
[377240001,1754305998314,-400.0,0.00040547,2]
[377240002,1754305998324,-6346.76,0.00040547,2]
[377240003,1754305998334,-400.0,0.00040547,2]
[377240004,1754305998343,-455.16,0.00040547,2]
[377240005,1754305998353,-400.0,0.00040547,2]
[377240006,1754305998362,-400.0,0.00040547,2]
[377240007,1754305998371,-1230.85,0.00040547,2]
[377240008,1754305998381,-1208.54,0.00040547,2]
[377240009,1754305998390,-400.0,0.00040547,2]
[377240010,1754305998400,-1363.88,0.00040547,2]
[377240011,1754305998409,-400.0,0.00040547,2]
[377240012,1754305998419,-941.56,0.00040547,2]
[377240013,1754305998429,-1603.12,0.00040547,2]
[377240014,1754305998438,-2444.62,0.00040547,2]
[377240015,1754305998448,-968.13,0.00040547,2]
[377240016,1754305998457,-642.68,0.00040547,2]
[377240017,1754305998468,-521.68,0.00040547,2]
[377240018,1754305998477,-400.0,0.00040547,2]
[377240019,1754305998487,-1266.17,0.00040547,2]
[377240020,1754305998497,-532.52,0.00040547,2]
[377240021,1754305998507,-2358.63,0.00040547,2]
[377240022,1754305998517,-403.29,0.00040547,2]
[377240023,1754305998526,-1754.23,0.00040547,2]
[377240024,1754305998537,-2154.85,0.00040547,2]
[377240025,1754305998547,-400.0,0.00040547,2]
[377240026,1754305998557,-403.11,0.00040547,2]
[377240027,1754305998567,-759.33,0.00040547,2]
[377240028,1754305998576,-1735.99,0.00040547,2]
[377240029,1754305998586,-1873.9,0.00040547,2]
[377240030,1754305998595,-400.0,0.00040547,2]
[377240031,1754305998606,-1686.63,0.00040547,2]
[377240032,1754305998616,-1673.67,0.00040547,2]
[377240033,1754305998626,-1754.05,0.00040547,2]
[377240034,1754305998635,-914.89,0.00040547,2]
[377240035,1754305998644,-1464.44,0.00040547,2]
[377240036,1754305998654,-1593.33,0.00040547,2]
[377240037,1754305998664,-773.62,0.00040547,2]
[377240038,1754305998674,-414.65744227,0.00040547,2]
[377240039,1754305998684,-1378.84,0.00040547,2]
[377240040,1754305998694,-783.24,0.00040547,2]
[377240041,1754305998704,-2045.74,0.00040547,2]
[377240042,1754305998714,-652.46,0.00040547,2]
[377240043,1754305998723,-4332.09,0.00040547,2]
[377240044,1754305998734,-557.78,0.00040547,2]
[377240045,1754305998744,-400.0,0.00040547,2]
[377240046,1754305998754,-505.58,0.00040547,2]
[377240047,1754305998763,-781.05,0.00040547,2]
[377240048,1754305998774,-1582.56,0.00040547,2]
[377240049,1754305998785,-437.18,0.00040547,2]
[377240050,1754305998795,-2822.69,0.00040547,2]
[377240051,1754305998805,-400.0,0.00040547,2]
[377240052,1754305998815,-4257.32,0.00040547,2]
[377240053,1754305998825,-400.0,0.00040547,2]
[377240054,1754305998835,-958.47,0.00040547,2]
[377240055,1754305998845,-8555.46,0.00040547,2]
[377240056,1754305998855,-400.0,0.00040547,2]
[377240057,1754305998865,-400.0,0.00040547,2]
[377240058,1754305998875,-1692.49,0.00040547,2]
[377240059,1754305998884,-1474.41,0.00040547,2]
[377240060,1754305998894,-12684.74,0.00040547,2]
[377240061,1754305998903,-8447.34,0.00040547,2]
[377240062,1754305998913,-1233.77,0.00040547,2]
[377240063,1754305998925,-920.62,0.00040547,2]
[377240064,1754305998935,-400.0,0.00040547,2]
[377240065,1754305998944,-400.0,0.00040547,2]
[377240066,1754305998954,-1370.77,0.00040547,2]
[377240067,1754305998963,-1888.39,0.00040547,2]
[377240068,1754305998974,-1907.39,0.00040547,2]
[377240069,1754305998984,-1431.25,0.00040547,2]
[377240070,1754305998994,-2271.19,0.00040547,2]
[377240071,1754305999004,-400.0,0.00040547,2]
[377240072,1754305999014,-1147.83,0.00040547,2]
[377240073,1754305999023,-1817.19,0.00040547,2]
[377240074,1754305999033,-400.0,0.00040547,2]
[377240075,1754305999043,-400.0,0.00040547,2]
[377240076,1754305999053,-400.0,0.00040547,2]
[377240077,1754305999063,-2068.75,0.00040547,2]
[377240078,1754305999072,-2687.79,0.00040547,2]
[377240079,1754305999082,-2214.61,0.00040547,2]
[377240080,1754305999092,-400.0,0.00040547,2]
[377240081,1754305999101,-400.0,0.00040547,2]
[377240082,1754305999111,-802.2,0.00040547,2]
[377240083,1754305999120,-1475.5,0.00040547,2]
[377240084,1754305999130,-670.02,0.00040547,2]
[377240085,1754305999140,-1614.22,0.00040547,2]
[377240086,1754305999150,-78789.54,0.00040547,2]
[377240087,1754305999159,-579.73,0.00040547,2]
[377240088,1754305999169,-400.0,0.00040547,2]
[377240089,1754305999179,-1690.87,0.00040547,2]
[377240090,1754305999189,-400.0,0.00040547,2]
[377240091,1754305999199,-2169.93,0.00040547,2]
[377240092,1754305999208,-1594.85,0.00040547,2]
[377240093,1754305999218,-11200.4,0.00040547,2]
[377240094,1754305999228,-400.0,0.00040547,2]
[377240095,1754305999237,-1258.18,0.00040547,2]
[377240096,1754305999248,-1475.71,0.00040547,2]
[377240097,1754305999257,-1043.71,0.00040547,2]
[377240098,1754305999267,-1778.93,0.00040547,2]
[377240099,1754305999277,-898.73,0.00040547,2]
[377240100,1754305999287,-498.32,0.00040547,2]
[377240101,1754305999297,-3118.04,0.00040547,2]
[377240102,1754305999306,-1857.39,0.00040547,2]
[377240103,1754305999316,-382.92057383,0.00040547,2]
[377240104,1754305999326,-1556.28,0.00040547,2]
[377240105,1754305999337,-400.0,0.00040547,2]
[377240106,1754305999347,-7506.25,0.00040547,2]
[377240107,1754305999356,-1191.23,0.00040547,2]
[377240108,1754305999366,-1349.97,0.00040547,2]
[377240109,1754305999376,-577.79,0.00040547,2]
[377240110,1754305999386,-1074.04,0.00040547,2]
[377240111,1754305999395,-3769.24,0.00040547,2]
[377240112,1754305999406,-988.14,0.00040547,2]
[377240113,1754305999416,-1741.31,0.00040547,2]
[377240114,1754305999426,-400.0,0.00040547,2]
[377240115,1754305999435,-3095.42,0.00040547,2]
[377240116,1754305999446,-1932.57,0.00040547,2]
[377240117,1754305999455,-400.0,0.00040547,2]
[377240118,1754305999464,-1252.42,0.00040547,2]
[377240119,1754305999474,-1555.06,0.00040547,2]
[377240120,1754305999483,-3383.45,0.00040547,2]
[377240121,1754305999493,-400.0,0.00040547,2]
[377240122,1754305999502,-1985.84,0.00040547,2]
[377240123,1754305999511,-400.0,0.00040547,2]
[377240124,1754305999520,-495.93,0.00040547,2]
[377240125,1754305999529,-2072.61,0.00040547,2]
[377240126,1754305999537,-1602.8,0.00040547,2]
[377240127,1754305999548,-3681.37,0.00040547,2]
[377240128,1754305999558,-1753.85,0.00040547,2]
[377240129,1754305999568,-400.0,0.00040547,2]
[377240130,1754305999578,-400.0,0.00040547,2]
[377240131,1754305999588,-403.97404112,0.00040547,2]
[377240132,1754305999598,-1605.29,0.00040547,2]
[377240133,1754305999608,-1657.08,0.00040547,2]
[377240134,1754305999619,-1613.77,0.00040547,2]
[377240135,1754305999629,-400.0,0.00040547,2]
[377240136,1754305999638,-400.0,0.00040547,2]
[377240137,1754305999648,-1726.45,0.00040547,2]
[377240138,1754305999658,-1109.72,0.00040547,2]
[377240139,1754305999667,-2197.37,0.00040547,2]
[377240140,1754305999677,-1265.39,0.00040547,2]
[377240141,1754305999687,-400.0,0.00040547,2]
[377240142,1754305999695,-531.77,0.00040547,2]
[377240143,1754305999703,-1790.09,0.00040547,2]
[377240144,1754305999711,-400.0,0.00040547,2]
[377240145,1754305999721,-994.35,0.00040547,2]
[377240146,1754305999730,-400.0,0.00040547,2]
[377240147,1754305999739,-1207.63,0.00040547,2]
[377240148,1754305999749,-400.0,0.00040547,2]
[377240149,1754305999759,-1697.44,0.00040547,2]
[377240150,1754305999769,-1044.0,0.00040547,2]
[377240151,1754305999779,-1273.07,0.00040547,2]
[377240152,1754305999789,-400.0,0.00040547,2]
[377240153,1754305999799,-1153.38,0.00040547,2]
[377240154,1754305999809,-971.37,0.00040547,2]
[377240155,1754305999818,-400.0,0.00040547,2]
[377240156,1754305999827,-1809.15,0.00040547,2]
[377240157,1754305999835,-8777.73,0.00040547,2]
[377240158,1754305999846,-596.6,0.00040547,2]
[377240159,1754305999855,-490.62,0.00040547,2]
[377240160,1754305999867,-1037.03,0.00040547,2]
[377240161,1754305999876,-1600.04,0.00040547,2]
[377240162,1754305999885,-400.0,0.00040547,2]
[377240163,1754305999893,-2275.44,0.00040547,2]
[377240164,1754305999901,-599.54,0.00040547,2]
[377240165,1754305999911,-1213.48,0.00040547,2]
[377240166,1754305999924,-6082.8,0.00040547,2]
[377240167,1754305999934,-1097.82,0.00040547,2]
[377240168,1754305999943,-400.0,0.00040547,2]
[377240169,1754305999953,-797.89,0.00040547,2]
[377240170,1754305999962,-448.66,0.00040547,2]
[377240171,1754305999972,-596.19,0.00040547,2]
[377240172,1754305999983,-1518.17,0.00040547,2]
[377240173,1754305999993,-10707.5,0.00040547,2]
[377240174,1754306000002,-4934.5,0.00040547,2]
[377240175,1754306000014,-400.0,0.00040547,2]
[377240176,1754306000024,-400.0,0.00040547,2]
[377240177,1754306000036,-2575.64,0.00040547,2]
[377240178,1754306000046,-400.0,0.00040547,2]
[377240179,1754306000056,-400.0,0.00040547,2]
[377240180,1754306000065,-1936.12,0.00040547,2]
[377240181,1754306000075,-1048.1,0.00040547,2]
[377240182,1754306000085,-2188.32,0.00040547,2]
[377240183,1754306000096,-1283.58,0.00040547,2]
[377240184,1754306000105,-586.94,0.00040547,2]
[377240185,1754306000115,-1614.51,0.00040547,2]
[377240186,1754306000125,-1367.27,0.00040547,2]
[377240187,1754306000136,-400.0,0.00040547,2]
[377240188,1754306000146,-238.88617981,0.00040547,2]
[377240189,1754306000156,-400.0,0.00040547,2]
[377240190,1754306000165,-500.49,0.00040547,2]
[377240191,1754306000313,-1400.57,0.00040547,2]
[377240192,1754306000323,-1339.76,0.00040547,2]
[377240193,1754306000334,-958.06,0.00040547,2]
[377240194,1754306000344,-3431.45,0.00040547,2]
[377240195,1754306000354,-16704.11,0.00040547,2]
[377240196,1754306000364,-1254.59,0.00040547,2]
[377240197,1754306000374,-1799.3,0.00040547,2]
[377240198,1754306000383,-1128.88,0.00040547,2]
[377240199,1754306000393,-4814.39,0.00040547,2]
[377240200,1754306000403,-465.90344151,0.00040547,2]
[377240201,1754306000412,-400.0,0.00040547,2]
[377240202,1754306000422,-1494.19,0.00040547,2]
[377240203,1754306000432,-871.27,0.00040547,2]
[377240204,1754306000441,-1442.54,0.00040547,2]
[377240205,1754306000451,-2112.05,0.00040547,2]
[377240206,1754306000461,-525.6,0.00040547,2]
[377240207,1754306000470,-637.09,0.00040547,2]
[377240208,1754306000480,-400.0,0.00040547,2]
[377240209,1754306000489,-2310.1,0.00040547,2]
[377240210,1754306000499,-953.11,0.00040547,2]
[377240211,1754306000509,-571.02,0.00040547,2]
[377240212,1754306000519,-2192.65,0.00040547,2]
[377240213,1754306000530,-1651.01,0.00040547,2]
[377240214,1754306000540,-845.12,0.00040547,2]
[377240215,1754306000550,-3310.33,0.00040547,2]
[377240216,1754306000560,-533.36,0.00040547,2]
[377240217,1754306000570,-1650.75,0.00040547,2]
[377240218,1754306000580,-781.29,0.00040547,2]
[377240219,1754306000590,-429.82,0.00040547,2]
[377240220,1754306000599,-151.0,0.00040552,14]
[377240221,1754306000608,-151.0,0.00040552,14]
[377240222,1754306000618,-151.0,0.00040552,14]
[377240223,1754306000628,-151.0,0.00040552,14]
[377240224,1754306000638,-280.723601,0.00040552,14]
[377240225,1754306000649,-280.723601,0.00040552,14]
[377240226,1754306000658,-280.723601,0.00040552,14]
[377240227,1754306000668,-280.723601,0.00040552,14]
[377240228,1754306000679,-280.723601,0.00040552,14]
[377240229,1754306000688,-280.723601,0.00040552,14]
[377240230,1754306000698,-280.723601,0.00040552,14]
[377240231,1754306000707,-280.723601,0.00040552,14]
[377240232,1754306000717,-311.583152,0.00040552,14]
[377240233,1754306000727,-311.583152,0.00040552,14]
[377240234,1754306000736,-311.583152,0.00040552,14]
[377240235,1754306000746,-311.583152,0.00040552,14]
[377240236,1754306000755,-311.583152,0.00040552,14]
[377240237,1754306000767,-311.583152,0.00040552,14]
[377240238,1754306000776,-311.583152,0.00040552,14]
[377240239,1754306000786,-311.583152,0.00040552,14]
[377240240,1754306000796,-2500.0,0.00040564,5]
[377240241,1754306000806,-2500.0,0.00040564,5]
[377240242,1754306000816,-207.0,0.0004062,2]
[377240243,1754306000825,-150.54,0.00040623,2]
[377240244,1754306000834,-2588.34,0.00040681,2]
[377240245,1754306000844,-151.0,0.00040687,14]
[377240246,1754306000854,-153.086016,0.00040687,14]
[377240247,1754306000863,-62748.24,0.000407,14]
[377240248,1754306000873,-3000.0,0.00040712,5]
[377240249,1754306000882,-348.70301418,0.000408,60]
[377240250,1754306000892,-2821.29,0.000408,14]
[377240251,1754306000902,-818.41,0.00040813,2]
[377240252,1754306000911,-466.93,0.00040813,2]
[377240253,1754306000924,-466.93,0.00040813,2]
[377240254,1754306000934,-818.41,0.00040813,2]
[377240255,1754306000943,-818.41,0.00040813,2]
[377240256,1754306000953,-466.93,0.00040813,2]
[377240257,1754306000963,-466.93,0.00040813,2]
[377240258,1754306000974,-814.61,0.00040813,2]
[377240259,1754306000983,-466.93,0.00040813,2]
[377240260,1754306000993,-463.01,0.00040813,2]
[377240261,1754306001003,-1179.88,0.0004082,4]
[377240262,1754306001013,-151.0,0.00040821,14]
[377240263,1754306001022,-151.0,0.00040821,14]
[377240264,1754306001032,-151.0,0.00040821,14]
[377240265,1754306001041,-151.0,0.00040821,14]
[377240266,1754306001051,-151.0,0.00040821,14]
[377240267,1754306001060,-151.0,0.00040821,14]
[377240268,1754306001070,-151.0,0.00040821,14]
[377240269,1754306001079,-151.0,0.00040821,14]
[377240270,1754306001089,-151.373839,0.00040821,2]
[377240271,1754306001099,-151.0,0.00040821,14]
[377240272,1754306001110,-204.272236,0.00040821,14]
[377240273,1754306001120,-204.272236,0.00040821,14]
[377240274,1754306001129,-151.0,0.00040821,14]
[377240275,1754306001139,-400.0,0.00040821,2]
[377240276,1754306001148,-400.0,0.00040821,2]
[377240277,1754306001159,-400.0,0.00040821,2]
[377240278,1754306001173,-400.0,0.00040821,2]
[377240279,1754306001186,-400.0,0.00040821,2]
[377240280,1754306001195,-400.0,0.00040821,2]
[377240281,1754306001205,-547.58,0.00040821,2]
[377240282,1754306001215,-458.04,0.00040821,2]
[377240283,1754306001224,-1200.66,0.00040821,2]
[377240284,1754306001234,-586.47,0.00040821,2]
[377240285,1754306001244,-520.3,0.00040821,2]
[377240286,1754306001254,-400.0,0.00040821,2]
[377240287,1754306001263,-452.57,0.00040821,2]
[377240288,1754306001273,-400.0,0.00040821,2]
[377240289,1754306001282,-1404.01,0.00040821,2]
[377240290,1754306001292,-472.84,0.00040821,2]
[377240291,1754306001301,-1341.8,0.00040821,2]
[377240292,1754306001311,-400.0,0.00040821,2]
[377240293,1754306001321,-484.06,0.00040821,2]
[377240294,1754306001331,-667.41,0.00040821,2]
[377240295,1754306001340,-1693.03,0.00040821,2]
[377240296,1754306001350,-537.19,0.00040821,2]
[377240297,1754306001361,-849.99,0.00040821,2]
[377240298,1754306001371,-931.14,0.00040821,2]
[377240299,1754306001381,-458.07,0.00040821,2]
[377240300,1754306001391,-1076.15,0.00040821,2]
[377240301,1754306001401,-400.0,0.00040821,2]
[377240302,1754306001411,-1903.28,0.00040821,2]
[377240303,1754306001420,-311.6120871,0.00040821,2]
[377240304,1754306001430,-400.0,0.00040821,2]
[377240305,1754306001440,-643.67,0.00040821,2]
[377240306,1754306001449,-1064.8,0.00040821,2]
[377240307,1754306001459,-470.87180672,0.00040821,2]
[377240308,1754306001469,-595.01,0.00040821,2]
[377240309,1754306001479,-1756.29,0.00040821,2]
[377240310,1754306001490,-824.14,0.00040821,2]
[377240311,1754306001500,-1696.93,0.00040821,2]
[377240312,1754306001510,-400.0,0.00040821,2]
[377240313,1754306001520,-400.0,0.00040821,2]
[377240314,1754306001529,-767.86,0.00040821,2]
[377240315,1754306001539,-1492.28,0.00040821,2]
[377240316,1754306001548,-400.0,0.00040821,2]
[377240317,1754306001558,-400.0,0.00040821,2]
[377240318,1754306001568,-400.0,0.00040821,2]
[377240319,1754306001578,-398.69771453,0.00040821,2]
[377240320,1754306001587,-661.87,0.00040821,2]
[377240321,1754306001597,-400.0,0.00040821,2]
[377240322,1754306001606,-400.0,0.00040821,2]
[377240323,1754306001616,-400.45,0.00040821,2]
[377240324,1754306001625,-1939.24,0.00040821,2]
[377240325,1754306001635,-304.80948083,0.00040821,2]
[377240326,1754306001645,-835.46,0.00040821,2]
[377240327,1754306001654,-786.11,0.00040821,2]
[377240328,1754306001664,-1820.66,0.00040821,2]
[377240329,1754306001674,-463.48,0.00040821,2]
[377240330,1754306001683,-400.0,0.00040821,2]
[377240331,1754306001693,-1385.33,0.00040821,2]
[377240332,1754306001702,-498.89,0.00040821,2]
[377240333,1754306001712,-499.13,0.00040821,2]
[377240334,1754306001722,-1516.62,0.00040821,2]
[377240335,1754306001731,-400.0,0.00040821,2]
[377240336,1754306001741,-400.0,0.00040821,2]
[377240337,1754306001750,-400.0,0.00040821,2]
[377240338,1754306001760,-400.0,0.00040821,2]
[377240339,1754306001769,-900.0,0.00040821,2]
[377240340,1754306001779,-550.11,0.00040821,2]
[377240341,1754306001788,-400.0,0.00040821,2]
[377240342,1754306001798,-1067.05,0.00040821,2]
[377240343,1754306001808,-454.35,0.00040821,2]
[377240344,1754306001818,-915.17,0.00040821,2]
[377240345,1754306001827,-1153.57,0.00040821,2]
[377240346,1754306001836,-400.0,0.00040821,2]
[377240347,1754306001846,-470.47,0.00040821,2]
[377240348,1754306001856,-400.0,0.00040821,2]
[377240349,1754306001865,-400.0,0.00040821,2]
[377240350,1754306001875,-1488.11,0.00040821,2]
[377240351,1754306001884,-742.88,0.00040821,2]
[377240352,1754306001894,-661.14,0.00040821,2]
[377240353,1754306001903,-441.54,0.00040821,2]
[377240354,1754306001913,-916.79,0.00040821,2]
[377240355,1754306001924,-587.55,0.00040821,2]
[377240356,1754306001934,-424.37,0.00040821,2]
[377240357,1754306001944,-1102.43,0.00040821,2]
[377240358,1754306001953,-400.0,0.00040821,2]
[377240359,1754306001963,-400.0,0.00040821,2]
[377240360,1754306001973,-285.40948219,0.00040821,2]
[377240361,1754306001983,-1819.37,0.00040821,2]
[377240362,1754306001992,-1188.91,0.00040821,2]
[377240363,1754306002002,-439.11,0.00040821,2]
[377240364,1754306002011,-400.0,0.00040821,2]
[377240365,1754306002021,-400.0,0.00040821,2]
[377240366,1754306002032,-1119.27,0.00040821,2]
[377240367,1754306002042,-400.0,0.00040821,2]
[377240368,1754306002052,-884.11,0.00040821,2]
[377240369,1754306002063,-465.18,0.00040821,2]
[377240370,1754306002073,-400.0,0.00040821,2]
[377240371,1754306002082,-1124.7,0.00040821,2]
[377240372,1754306002093,-953.16,0.00040821,2]
[377240373,1754306002102,-400.0,0.00040821,2]
[377240374,1754306002113,-449.54,0.00040821,2]
[377240375,1754306002123,-1903.44,0.00040821,2]
[377240376,1754306002133,-400.0,0.00040821,2]
[377240377,1754306002142,-977.67,0.00040821,2]
[377240378,1754306002152,-2558.85,0.00040821,2]
[377240379,1754306002162,-400.0,0.00040821,2]
[377240380,1754306002172,-480.36,0.00040821,2]
[377240381,1754306002182,-2716.06,0.00040821,2]
[377240382,1754306002192,-400.0,0.00040821,2]
[377240383,1754306002201,-249.77717665,0.00040821,2]
[377240384,1754306002211,-400.0,0.00040821,2]
[377240385,1754306002221,-1797.0,0.00040821,2]
[377240386,1754306002230,-1399.58,0.00040821,2]
[377240387,1754306002240,-459.32,0.00040821,2]
[377240388,1754306002250,-2022.23,0.00040821,2]
[377240389,1754306002259,-687.73,0.00040821,2]
[377240390,1754306002269,-400.0,0.00040821,2]
[377240391,1754306002279,-452.62,0.00040821,2]
[377240392,1754306002289,-1027.4,0.00040821,2]
[377240393,1754306002299,-4159.78,0.00040821,2]
[377240394,1754306002309,-400.0,0.00040821,2]
[377240395,1754306002319,-743.48,0.00040821,2]
[377240396,1754306002329,-500.0,0.00040821,2]
[377240397,1754306002339,-400.0,0.00040821,2]
[377240398,1754306002349,-400.0,0.00040821,2]
[377240399,1754306002360,-400.0,0.00040821,2]
[377240400,1754306002370,-1103.2,0.00040821,2]
[377240401,1754306002380,-2146.76,0.00040821,2]
[377240402,1754306002390,-400.0,0.00040821,2]
[377240403,1754306002401,-697.9,0.00040821,2]
[377240404,1754306002412,-700.27,0.00040821,2]
[377240405,1754306002422,-1197.92,0.00040821,2]
[377240406,1754306002432,-400.0,0.00040821,2]
[377240407,1754306002442,-400.0,0.00040821,2]
[377240408,1754306002452,-400.0,0.00040821,2]
[377240409,1754306002462,-442.05,0.00040821,2]
[377240410,1754306002471,-400.0,0.00040821,2]
[377240411,1754306002480,-763.21,0.00040821,2]
[377240412,1754306002489,-664.53,0.00040821,2]
[377240413,1754306002499,-862.35,0.00040821,2]
[377240414,1754306002508,-624.93,0.00040821,2]
[377240415,1754306002517,-793.15,0.00040821,2]
[377240416,1754306002526,-639.19,0.00040821,2]
[377240417,1754306002536,-400.0,0.00040821,2]
[377240418,1754306002903,-605.24,0.00040821,2]
[377240419,1754306002917,-400.0,0.00040821,2]
[377240420,1754306002933,-2472.68,0.00040821,2]
[377240421,1754306002943,-1841.68,0.00040821,2]
[377240422,1754306002953,-1091.38,0.00040821,2]
[377240423,1754306002963,-569.15,0.00040821,2]
[377240424,1754306002974,-482.87,0.00040821,2]
[377240425,1754306002985,-400.0,0.00040821,2]
[377240426,1754306002995,-1179.1,0.00040821,2]
[377240427,1754306003006,-400.0,0.00040821,2]
[377240428,1754306003016,-1320.13,0.00040821,2]